bitfinex/quotes_SOLUSD_20250415
["timestamp","ask_amount","ask_price","bid_price","bid_amount"]
[1744748050138,0.03,128.09,128.05,21.08619708]
[1744748051141,7.83701069,128.09,128.05,21.08619708]
[1744748051641,7.83701069,128.09,128.05,10.94]
[1744748051642,25.95790777,128.09,128.05,10.94]
[1744748051833,15.81171069,128.09,128.05,21.08619708]
[1744748052234,15.81171069,128.09,128.05,10.94]
[1744748052535,5.83142211,128.08,128.05,28.89547976]
[1744748052735,5.83142211,128.08,128.07,10.14619708]
[1744748052924,5.83142211,128.08,128.07,10.28835865]
[1744748053125,5.83142211,128.08,128.07,17.95442695]
[1744748053320,0.03,128.09,128.07,10.14619708]
[1744748053533,0.03,128.09,128.08,10.14619708]
[1744748053825,0.03,128.09,128.07,10.14619708]
[1744748054026,0.03,128.09,128.06,33.80856315]
[1744748054226,0.03,128.09,128.07,10.14619708]
[1744748054533,0.03,128.09,128.05,28.89555283]
[1744748054534,7.83701097,128.09,128.05,28.89555283]
[1744748054737,7.83701097,128.09,128.06,10.14619708]
[1744748054946,7.83701097,128.09,128.07,10.14619708]
[1744748055337,0.03,128.09,128.07,10.14619708]
[1744748055745,0.03,128.09,128.06,10.14619708]
[1744748057048,0.03,128.09,128.07,10.14619708]
[1744748057340,0.03,128.09,128.06,10.14619708]
[1744748059036,0.03,128.09,128.07,10.14619708]
[1744748059447,0.03,128.09,128.06,10.14619708]
[1744748061251,0.03,128.09,128.06,21.06619708]
[1744748064347,0.03,128.09,128.07,10.14619708]
[1744748071453,0.03,128.09,128.08,10.14619708]
[1744748072641,0.03,128.09,128.08,17.95381731]
[1744748073161,0.03,128.09,128.08,10.14619708]
[1744748075078,0.03,128.09,128.08,17.95381731]
[1744748077562,0.03,128.09,128.08,10.14619708]
[1744748077764,0.03,128.09,128.06,10.92]
[1744748077970,0.03,128.09,128.06,21.06619708]
[1744748078268,0.03,128.09,128.08,10.14619708]
[1744748079474,0.03,128.09,128.08,17.95381731]
[1744748081376,0.03,128.09,128.08,10.14619708]
[1744748081963,0.03,128.09,128.06,18.72851709]
[1744748082277,0.03,128.09,128.07,10.14619708]
[1744748083576,0.03,128.09,128.08,10.14619708]
[1744748085279,0.03,128.09,128.07,10.14619708]
[1744748089585,0.03,128.09,128.06,18.72878336]
[1744748089786,0.03,128.09,128.07,10.14619708]
[1744748092085,0.03,128.09,128.08,10.92]
[1744748097280,5.87261678,128.09,128.08,10.92]
[1744748098077,13.67962747,128.09,128.08,10.92]
[1744748099489,5.87261678,128.09,128.08,10.92]
[1744748099899,13.67962747,128.09,128.08,10.92]
[1744748100817,5.87261678,128.09,128.08,10.92]
[1744748101609,5.87261678,128.09,128.06,21.06619708]
[1744748101811,13.67972204,128.09,128.06,21.06619708]
[1744748101985,10.14619708,128.07,128.03,10.92]
[1744748102191,13.67972204,128.09,128.06,10.14619708]
[1744748102502,0.03,128.09,128.06,10.14619708]
[1744748102799,0.03,128.09,128.08,10.14619708]
[1744748102987,0.03,128.09,128.08,21.06619708]
[1744748105384,0.03,128.09,128.08,10.92]
[1744748107387,16.01859886,128.09,128.08,10.92]
[1744748107591,41.24864772,128.09,128.04,40.92]
[1744748107793,7.80822987,128.07,128.04,40.92]
[1744748108103,7.80822987,128.07,128.04,10.92]
[1744748108993,5.84068051,128.06,128.04,10.92]
[1744748109395,23.79580919,128.06,128.04,10.92]
[1744748109707,13.64961211,128.06,128.04,10.92]
[1744748110011,7.8089316,128.06,128.04,10.92]
[1744748110685,17.95512868,128.06,128.04,10.92]
[1744748111005,28.79584594,128.05,128.01,0.063]
[1744748111318,7.81037593,128.04,128.02,30.0]
[1744748111481,7.81037593,128.04,128.01,10.20919708]
[1744748111689,7.81037593,128.04,128.01,0.063]
[1744748112705,17.95594565,128.05,128.01,0.063]
[1744748112896,10.14619708,128.07,128.02,10.14619708]
[1744748113204,7.80920547,128.06,128.02,10.14619708]
[1744748114007,17.95540255,128.06,128.01,10.20919708]
[1744748114212,10.14619708,128.05,128.01,0.063]
[1744748115411,7.81005935,128.04,128.01,0.063]
[1744748116610,10.14619708,128.04,128.01,0.063]
[1744748117909,28.79584594,128.03,128.01,0.063]
[1744748118213,28.79584594,128.02,128.01,0.063]
[1744748118596,36.60712542,128.02,128.01,0.063]
[1744748118813,42.42348217,128.02,128.01,0.063]
[1744748120012,45.32950248,128.02,128.01,0.063]
[1744748120915,42.42348217,128.02,128.01,0.063]
[1744748122713,42.42348217,128.02,128.01,1e-08]
[1744748122714,68.56564374,128.02,128.01,1e-08]
[1744748122913,68.42348217,128.02,128.01,1e-08]
[1744748125823,62.60712542,128.02,128.01,1e-08]
[1744748126527,19.52586992,128.04,128.01,1e-08]
[1744748126836,17.95503668,128.06,128.02,10.14619708]
[1744748127008,17.95503668,128.06,128.01,21.06619709]
[1744748128530,17.95503668,128.06,128.02,10.14619708]
[1744748129524,7.80823575,128.07,128.04,10.14619708]
[1744748130106,7.80823575,128.07,128.03,10.14619708]
[1744748131336,17.95411363,128.08,128.04,10.14619708]
[1744748132530,17.95411363,128.08,128.04,17.95612521]
[1744748133331,17.95411363,128.08,128.04,10.14619708]
[1744748134115,17.95411363,128.08,128.04,17.95611113]
[1744748134929,17.95411363,128.08,128.04,10.14619708]
[1744748136923,10.14619708,128.05,128.01,48.69539709]
[1744748137719,10.14619708,128.05,128.01,56.50725949]
[1744748137925,10.14619708,128.05,128.01,48.69539709]
[1744748138229,10.14619708,128.05,128.01,56.50710006]
[1744748138433,17.95591284,128.05,128.01,48.69539709]
[1744748138929,17.95591284,128.05,128.01,38.54920001]
[1744748139426,10.14619708,128.03,128.01,10.92000001]
[1744748139631,10.14619708,128.04,128.01,10.92000001]
[1744748140730,36.60651531,128.03,128.01,1e-08]
[1744748140935,28.79584594,128.02,128.01,1e-08]
[1744748141413,34.60076821,128.02,128.01,1e-08]
[1744748142538,34.74292978,128.02,128.01,1e-08]
[1744748143116,42.55420926,128.02,128.01,1e-08]
[1744748144854,45.45619828,128.02,128.01,1e-08]
[1744748145752,42.55420926,128.02,128.01,1e-08]
[1744748147550,45.45555778,128.02,128.01,1e-08]
[1744748148249,42.55420926,128.02,128.01,1e-08]
[1744748149151,42.41204769,128.02,128.01,1e-08]
[1744748150148,36.60712542,128.02,128.01,1e-08]
[1744748151947,42.4146183,128.02,128.01,1e-08]
[1744748152635,45.31923162,128.02,128.01,1e-08]
[1744748153145,42.4146183,128.02,128.01,1e-08]
[1744748157055,32.26842122,128.02,128.01,1e-08]
[1744748157261,42.4146183,128.02,128.01,1e-08]
[1744748158057,36.60712542,128.02,128.01,1e-08]
[1744748159237,17.95747656,128.02,128.01,1e-08]
[1744748162354,26.46031823,128.03,128.01,1e-08]
[1744748162560,10.14619708,128.02,128.01,1e-08]
[1744748163469,17.95747656,128.02,128.01,1e-08]
[1744748165662,10.14619708,128.02,128.01,1e-08]
[1744748166462,18.64964886,128.05,128.01,1e-08]
[1744748166760,10.14619708,128.07,128.02,10.14619708]
[1744748166942,10.14619708,128.07,128.02,21.06619708]
[1744748167144,5.81006921,128.06,128.02,21.06619708]
[1744748167746,10.14619708,128.07,128.03,7.81066937]
[1744748169467,10.14619708,128.07,128.03,17.95686645]
[1744748169674,0.03,128.08,128.03,17.95686645]
[1744748169675,0.03,128.08,128.06,1.6058]
[1744748169838,0.03,128.08,128.06,11.75199708]
[1744748171667,0.03,128.08,128.07,7.80822987]
[1744748172162,0.03,128.08,128.07,18.72822987]
[1744748172362,0.03,128.08,128.07,28.87442695]
[1744748172548,0.03,128.08,128.07,18.72822987]
[1744748172745,0.03,128.08,128.07,28.87442695]
[1744748178868,0.03,128.08,128.07,10.92]
[1744748179054,10.17619708,128.08,128.07,10.92]
[1744748180582,17.98381731,128.08,128.07,10.92]
[1744748181670,56.15251676,128.08,128.03,1.5192]
[1744748181874,10.14619708,128.05,128.03,1.5192]
[1744748182381,17.95566185,128.05,128.03,1.5192]
[1744748182686,44.64964886,128.03,128.01,1e-08]
[1744748182884,28.79584594,128.02,128.01,1e-08]
[1744748184878,36.60712542,128.02,128.01,1e-08]
[1744748185357,17.95747656,128.02,128.01,1e-08]
[1744748187874,18.64964886,128.01,128.0,1e-08]
[1744748188260,10.14619708,128.01,128.0,1e-08]
[1744748188660,17.95747656,128.02,128.0,1e-08]
[1744748189675,7.81127948,128.02,128.0,1e-08]
[1744748191180,23.62628613,128.02,128.0,1e-08]
[1744748191379,15.81500665,128.01,128.0,1e-08]
[1744748191978,23.62689634,128.01,128.0,1e-08]
[1744748193692,7.81188969,128.01,128.0,1e-08]
[1744748193876,23.62689634,128.01,128.0,1e-08]
[1744748194293,7.81188969,128.01,128.0,1e-08]
[1744748194587,7.81145353,128.02,128.0,1e-08]
[1744748194887,7.81079196,128.03,128.0,1e-08]
[1744748195090,15.81500665,128.05,128.0,17.42460666]
[1744748195485,26.0,128.06,128.0,17.42460666]
[1744748195665,15.81500665,128.05,128.0,17.42460666]
[1744748196189,33.8088396,128.06,128.0,17.42460666]
[1744748196392,15.81500665,128.05,128.0,17.42460666]
[1744748197195,15.81500665,128.02,128.0,1e-08]
[1744748198282,7.81188969,128.01,128.0,1e-08]
[1744748198478,23.62689634,128.01,128.0,1e-08]
[1744748201402,7.81066937,128.03,128.0,1e-08]
[1744748201590,15.81500665,128.02,128.0,1e-08]
[1744748201787,23.62567602,128.03,128.0,1e-08]
[1744748202091,15.81500665,128.02,128.0,1e-08]
[1744748202692,23.62689634,128.01,128.0,1e-08]
[1744748203193,7.81188969,128.01,128.0,1e-08]
[1744748203501,7.81159174,128.02,128.0,1e-08]
[1744748203681,23.62659839,128.02,128.0,1e-08]
[1744748206601,15.81500665,128.03,128.0,1e-08]
[1744748208594,15.81500665,128.02,128.0,1e-08]
[1744748208780,15.81500665,128.01,128.0,1e-08]
[1744748209997,53.33780109,128.03,128.0,1e-08]
[1744748210386,15.81500665,128.01,128.0,1e-08]
[1744748210790,23.62689634,128.01,128.0,1e-08]
[1744748211001,7.81175925,128.02,128.0,1e-08]
[1744748211196,23.6267659,128.02,128.0,1e-08]
[1744748211398,15.81500665,128.01,128.0,1e-08]
[1744748212201,49.62589088,128.03,128.0,1e-08]
[1744748212380,23.62589088,128.03,128.0,1e-08]
[1744748212890,15.81500665,128.02,128.0,1e-08]
[1744748213206,10.12284783,128.02,128.0,1e-08]
[1744748213885,10.12284783,128.01,128.0,1e-08]
[1744748214704,27.33755766,128.03,128.0,1e-08]
[1744748215005,17.93473752,128.01,128.0,1e-08]
[1744748215903,7.81188969,128.01,128.0,1e-08]
[1744748216405,45.52406594,128.05,128.0,1e-08]
[1744748216600,10.12284783,128.03,128.0,1e-08]
[1744748217197,17.93405279,128.03,128.0,1e-08]
[1744748221308,10.12284783,128.01,128.0,1e-08]
[1744748221614,36.58438638,128.01,128.0,1e-08]
[1744748222908,42.40670831,128.01,128.0,1e-08]
[1744748223313,48.10691429,128.01,128.0,1e-08]
[1744748223709,51.0209107,128.01,128.0,1e-08]
[1744748224320,32.37126184,128.01,128.0,1e-08]
[1744748224499,51.0209107,128.01,128.0,1e-08]
[1744748228318,48.10691429,128.01,128.0,1e-08]
[1744748228817,42.28459236,128.01,128.0,1e-08]
[1744748229307,51.04535074,128.01,128.0,1e-08]
[1744748231201,32.39570188,128.01,128.0,1e-08]
[1744748232822,16.57264807,128.01,128.0,1e-08]
[1744748233205,32.39570188,128.01,128.0,1e-08]
[1744748233421,16.57264807,128.01,128.0,1e-08]
[1744748233621,32.39570188,128.01,128.0,1e-08]
[1744748234722,26.55519629,128.01,128.0,1e-08]
[1744748235623,23.6349435,128.01,128.0,1e-08]
[1744748236426,29.47110879,128.01,128.0,1e-08]
[1744748236822,13.64805498,128.01,128.0,1e-08]
[1744748237221,5.83616529,128.01,128.0,1e-08]
[1744748241210,5.83616529,128.01,128.0,10.90000001]
[1744748241634,7.81066937,128.03,128.0,10.90000001]
[1744748242323,15.82305381,128.05,128.01,15.82305381]
[1744748242509,15.82305381,128.05,128.0,26.72305382]
[1744748243319,23.63273602,128.05,128.01,15.82305381]
[1744748243625,15.82305381,128.07,128.03,15.82305381]
[1744748243832,2.91584177,128.06,128.03,15.82305381]
[1744748244427,2.91584177,128.06,128.02,15.82305381]
[1744748244620,23.63161081,128.07,128.02,15.82305381]
[1744748245021,5.83009915,128.06,128.02,15.82305381]
[1744748245227,5.83009915,128.06,128.02,10.1153861]
[1744748245422,17.92544545,128.04,128.0,10.90000001]
[1744748245735,7.81005935,128.04,128.0,10.90000001]
[1744748245933,10.1153861,128.03,128.0,10.90000001]
[1744748246523,7.81005935,128.04,128.0,10.90000001]
[1744748246828,17.92544545,128.04,128.0,10.90000001]
[1744748247430,7.8088396,128.06,128.02,10.1153861]
[1744748247827,5.82835618,128.05,128.02,10.1153861]
[1744748248226,15.94374228,128.05,128.0,21.01538611]
[1744748248533,15.94374228,128.05,128.0,28.82773336]
[1744748248736,10.1153861,128.05,128.0,28.82773336]
[1744748249034,10.1153861,128.05,128.0,21.01538611]
[1744748249236,15.81019193,128.05,128.0,26.71019194]
[1744748249415,7.81005935,128.04,128.0,34.52265407]
[1744748249614,7.81005935,128.04,128.0,26.71019194]
[1744748250624,23.62025128,128.04,128.0,26.71019194]
[1744748252533,23.62025128,128.04,128.0,34.52258136]
[1744748252836,23.62025128,128.04,128.0,18.71238943]
[1744748253333,23.62025128,128.04,128.0,7.81238943]
[1744748253641,23.62025128,128.04,128.01,10.88]
[1744748255121,23.61977533,128.05,128.01,18.69182991]
[1744748255436,7.8095834,128.05,128.01,18.69182991]
[1744748255638,23.61977533,128.05,128.01,18.69182991]
[1744748255843,23.61977533,128.05,128.01,34.50202184]
[1744748256939,7.80844819,128.07,128.03,15.81019193]
[1744748257645,23.61864012,128.07,128.03,15.81019193]
[1744748257839,5.82233035,128.06,128.03,15.81019193]
[1744748258526,5.82233035,128.06,128.03,23.62079258]
[1744748258727,23.61864012,128.07,128.03,23.62079258]
[1744748259336,23.61864012,128.07,128.03,15.81019193]
[1744748259540,15.81019193,128.06,128.01,10.88]
[1744748259753,15.81019193,128.06,128.01,26.69019193]
[1744748260455,23.61939987,128.06,128.01,34.50201393]
[1744748262157,15.84019193,128.08,128.03,15.81019193]
[1744748262667,23.6480633,128.08,128.03,23.62044287]
[1744748264558,23.6480633,128.08,128.01,10.88]
[1744748264559,15.81019193,128.05,128.01,10.88]
[1744748264856,15.81019193,128.03,128.01,10.88]
[1744748265055,15.81019193,128.04,128.01,10.88]
[1744748266250,23.62078037,128.04,128.01,10.88]
[1744748266475,7.81058844,128.04,128.01,10.88]
[1744748266946,7.80956615,128.05,128.01,26.69019193]
[1744748267152,15.81019193,128.06,128.01,26.69019193]
[1744748267745,35.33219708,128.07,128.02,15.81019193]
[1744748267940,7.80917114,128.06,128.02,15.81019193]
[1744748268261,23.61874378,128.07,128.03,15.81019193]
[1744748269764,23.61874378,128.07,128.02,23.62125364]
[1744748270764,15.81019193,128.06,128.01,26.69019193]
[1744748272467,7.80944943,128.05,128.01,26.69019193]
[1744748274943,23.61964136,128.05,128.01,10.88]
[1744748275659,7.80944943,128.05,128.01,26.69019193]
[1744748277167,7.80944943,128.05,128.01,20.99764526]
[1744748278766,7.80944943,128.05,128.02,10.11764526]
[1744748278943,7.80898035,128.06,128.03,10.11764526]
[1744748279346,7.80822987,128.07,128.03,10.11764526]
[1744748279661,8.74948413,128.06,128.03,10.11764526]
[1744748280249,5.83298942,128.06,128.04,10.11764526]
[1744748280469,5.83298942,128.06,128.05,10.11764526]
[1744748280847,0.03,128.08,128.05,10.11764526]
[1744748281048,0.03,128.08,128.06,20.97764526]
[1744748281273,0.03,128.08,128.06,10.86]
[1744748282272,0.03,128.08,128.06,20.97764526]
[1744748283170,0.03,128.08,128.06,26.65698132]
[1744748283546,0.03,128.08,128.07,15.79698132]
[1744748283746,0.03,128.08,128.07,15.93914289]
[1744748284260,7.42487075,128.13,128.07,15.93914289]
[1744748284460,7.42487075,128.13,128.09,15.79698132]
[1744748285078,8.74945674,128.12,128.09,15.79698132]
[1744748285260,16.55471822,128.12,128.09,15.79698132]
[1744748285975,5.83297116,128.11,128.08,23.60457823]
[1744748286765,7.80482627,128.13,128.09,15.79698132]
[1744748286967,41.82698132,128.14,128.11,15.79698132]
[1744748286968,26.03,128.14,128.11,15.79698132]
[1744748287164,0.03,128.14,128.12,15.79698132]
[1744748288261,0.03,128.14,128.13,15.79698132]
[1744748288659,0.03,128.14,128.12,15.79698132]
[1744748290468,0.03,128.14,128.11,10.86]
[1744748290867,0.03,128.14,128.11,34.46272817]
[1744748291071,0.03,128.14,128.12,0.14216157]
[1744748291266,0.03,128.14,128.13,15.79698132]
[1744748294964,0.03,128.14,128.13,23.74371637]
[1744748295283,0.03,128.14,128.13,44.00146523]
[1744748295473,0.03,128.16,128.15,18.79181043]
[1744748295676,0.03,128.16,128.15,50.38577307]
[1744748295875,18.64964886,128.14,128.08,15.79698132]
[1744748296184,0.03,128.16,128.11,15.79698132]
[1744748296369,23.62972788,128.16,128.11,15.79698132]
[1744748296680,7.83274656,128.16,128.11,15.79698132]
[1744748296877,23.62972788,128.16,128.11,15.79698132]
[1744748297182,15.79698132,128.13,128.09,12.4681]
[1744748297382,15.79698132,128.12,128.09,10.86]
[1744748297583,15.79698132,128.11,128.09,10.86]
[1744748297984,23.43988132,128.13,128.09,10.86]
[1744748298161,41.79698132,128.14,128.09,26.65698132]
[1744748298366,7.80457348,128.13,128.1,15.79698132]
[1744748299067,7.80457348,128.13,128.09,10.86]
[1744748299267,7.80457348,128.13,128.09,26.65698132]
[1744748299487,7.80457348,128.13,128.09,10.86]
[1744748299488,23.6015548,128.13,128.09,10.86]
[1744748301994,15.79698132,128.12,128.09,10.86]
[1744748302788,15.79698132,128.11,128.09,10.86]
[1744748302982,7.80457348,128.13,128.09,26.65698132]
[1744748303492,23.6015548,128.13,128.09,10.86]
[1744748304309,15.79698132,128.12,128.09,10.86]
[1744748304496,27.31600718,128.13,128.09,10.86]
[1744748304497,15.79698132,128.11,128.09,10.86]
[1744748304897,27.31600718,128.13,128.09,10.86]
[1744748304898,15.79698132,128.12,128.09,10.86]
[1744748305808,7.80579189,128.11,128.09,10.86]
[1744748305994,15.79698132,128.14,128.09,26.65698132]
[1744748306201,23.60033676,128.15,128.1,15.79698132]
[1744748307407,7.80335544,128.15,128.11,15.79698132]
[1744748308308,23.60033676,128.15,128.1,17.40678132]
[1744748308701,23.60033676,128.15,128.11,15.79698132]
[1744748309007,7.80335544,128.15,128.11,15.79698132]
[1744748309592,7.80335544,128.15,128.1,9.41606785]
[1744748309789,15.79698132,128.14,128.1,17.40678132]
[1744748310000,7.80365531,128.15,128.12,15.79698132]
[1744748311817,7.80365531,128.15,128.11,15.79698132]
[1744748312017,23.60063663,128.15,128.1,1.6098]
[1744748312205,15.79698132,128.14,128.1,1.6098]
[1744748312797,15.79698132,128.13,128.09,36.86]
[1744748313005,15.79698132,128.12,128.09,36.86]
[1744748314322,23.6027544,128.12,128.09,10.86]
[1744748314617,15.79698132,128.11,128.09,10.86]
[1744748315013,7.80577308,128.12,128.09,10.86]
[1744748315200,23.6027544,128.12,128.09,10.86]
[1744748315404,15.79698132,128.11,128.09,10.86]
[1744748316422,23.6027544,128.12,128.09,10.86]
[1744748317820,7.80577308,128.12,128.09,10.86]
[1744748318015,23.601205,128.14,128.09,34.46378499]
[1744748318218,23.601205,128.14,128.1,15.79698132]
[1744748318715,23.601205,128.14,128.09,18.66680367]
[1744748318929,15.79698132,128.13,128.09,10.86]
[1744748319223,15.79698132,128.12,128.09,10.86]
[1744748319426,15.79698132,128.1,128.09,10.86]
[1744748320525,15.79698132,128.11,128.09,10.86]
[1744748321714,34.44663018,128.1,128.09,10.86]
[1744748321913,18.64964886,128.09,128.04,0.063]
[1744748322117,15.79698132,128.06,128.04,0.063]
[1744748322321,15.79698132,128.08,128.04,0.063]
[1744748322625,23.60465328,128.08,128.04,15.85998132]
[1744748322832,25.6953566,128.12,128.05,15.79698132]
[1744748323025,23.6030591,128.11,128.06,15.79698132]
[1744748323218,23.6030591,128.11,128.04,26.063]
[1744748323219,15.79698132,128.1,128.05,0.14216157]
[1744748323529,15.79698132,128.1,128.06,15.79698132]
[1744748323731,23.6030591,128.11,128.06,15.79698132]
[1744748324225,7.80607778,128.11,128.07,23.60521119]
[1744748324430,23.6030591,128.11,128.07,23.60521119]
[1744748324614,23.6030591,128.11,128.08,10.86]
[1744748326227,7.80518264,128.12,128.08,10.86]
[1744748326422,23.60216396,128.12,128.08,10.86]
[1744748327130,5.82439094,128.11,128.08,10.86]
[1744748327808,23.60216396,128.12,128.08,10.86]
[1744748328430,23.10216396,128.12,128.08,18.66760148]
[1744748328634,23.10216396,128.12,128.08,34.4645828]
[1744748329027,23.10216396,128.12,128.08,26.65698132]
[1744748329227,23.10216396,128.12,128.08,10.86]
[1744748329420,15.79698132,128.1,128.08,10.86]
[1744748330120,15.79698132,128.11,128.08,10.86]
[1744748330313,7.80596693,128.11,128.08,10.86]
[1744748330935,23.60294825,128.11,128.08,10.86]
[1744748333312,23.60294825,128.11,128.07,10.86]
[1744748335236,17.91536984,128.11,128.07,10.86]
[1744748335429,10.10940291,128.1,128.07,10.86]
[1744748337639,17.91616878,128.1,128.07,10.86]
[1744748339331,17.91544949,128.11,128.07,10.86]
[1744748339536,5.82987873,128.1,128.07,10.86]
[1744748340036,7.80604658,128.11,128.07,20.96940291]
[1744748340229,7.80604658,128.11,128.07,28.7775251]
[1744748340428,17.91487884,128.12,128.08,10.10940291]
[1744748340824,7.80547593,128.12,128.08,10.10940291]
[1744748341023,8.74837009,128.11,128.08,10.10940291]
[1744748341535,8.74837009,128.11,128.08,17.91691529]
[1744748341737,5.83224673,128.11,128.08,17.91691529]
[1744748342039,5.83224673,128.1,128.08,17.91691529]
[1744748342625,5.83224673,128.1,128.09,10.25156448]
[1744748343041,5.83224673,128.1,128.09,10.10940291]
[1744748343224,17.91400417,128.13,128.08,14.23631238]
[1744748343422,7.80460126,128.13,128.09,10.10940291]
[1744748343745,17.91275835,128.15,128.1,17.91527277]
[1744748345125,10.71968428,128.14,128.1,17.91527277]
[1744748345953,2.91548657,128.14,128.11,10.10940291]
[1744748346123,43.94233511,128.16,128.12,20.96940291]
[1744748347251,43.94233511,128.16,128.12,28.77447307]
[1744748347749,17.94233511,128.16,128.12,28.77447307]
[1744748348336,7.8329322,128.16,128.12,28.77447307]
[1744748349147,10.10940291,128.14,128.12,10.86]
[1744748349444,17.91397639,128.13,128.12,10.86]
[1744748350451,17.91397639,128.13,128.08,25.85774804]
[1744748350754,10.10940291,128.12,128.09,10.86]
[1744748351657,27.31600718,128.13,128.09,10.86]
[1744748351840,10.10940291,128.12,128.09,10.86]
[1744748352730,17.91516148,128.12,128.09,10.86]
[1744748354448,7.80575857,128.12,128.09,10.86]
[1744748355351,7.80335544,128.15,128.11,10.10940291]
[1744748355650,7.80335544,128.15,128.12,10.10940291]
[1744748357451,7.80335544,128.15,128.11,17.9150068]
[1744748357754,10.10940291,128.15,128.11,17.9150068]
[1744748358634,10.10940291,128.14,128.1,17.91564572]
[1744748359045,10.10940291,128.14,128.1,10.10940291]
[1744748359358,10.10940291,128.14,128.09,28.77624623]
[1744748359565,10.10940291,128.12,128.09,10.86]
[1744748359773,17.9151948,128.11,128.09,10.86]
[1744748360067,7.80579189,128.11,128.09,10.86]
[1744748362363,27.31622122,128.13,128.09,10.86]
[1744748362546,15.79213702,128.12,128.09,10.86]
[1744748363565,23.59792891,128.11,128.09,10.86]
[1744748364448,15.79213702,128.1,128.09,10.86]
[1744748365765,7.80640124,128.1,128.09,10.86]
[1744748365946,7.80640124,128.1,128.07,10.84]
[1744748366664,15.79213702,128.13,128.09,15.79213702]
[1744748366868,41.79213702,128.14,128.09,15.79213702]
[1744748367366,41.79213702,128.14,128.09,17.31163702]
[1744748367568,7.80487545,128.13,128.09,17.31163702]
[1744748367757,10.71971607,128.13,128.09,25.11855533]
[1744748368074,10.71971607,128.13,128.1,15.79213702]
[1744748368365,7.80487545,128.13,128.1,15.79213702]
[1744748369264,7.80487545,128.13,128.09,25.11855533]
[1744748370158,7.80429612,128.14,128.1,15.79213702]
[1744748370554,7.80365446,128.15,128.11,15.79213702]
[1744748370761,0.03,128.16,128.12,26.63213702]
[1744748371453,0.03,128.16,128.13,15.79213702]
[1744748372569,15.82213702,128.16,128.12,18.64479732]
[1744748372776,15.82213702,128.16,128.12,10.84]
[1744748373475,15.79213702,128.14,128.12,10.84]
[1744748375190,23.59656057,128.14,128.12,10.84]
[1744748375393,7.80442355,128.14,128.12,10.84]
[1744748376188,26.03,128.16,128.12,26.63213702]
[1744748376496,0.03,128.16,128.13,15.79213702]
[1744748377679,23.62498426,128.16,128.12,10.84]
[1744748377857,23.62498426,128.16,128.12,26.63213702]
[1744748379459,23.62498426,128.16,128.12,10.84]
[1744748379660,15.79213702,128.15,128.12,10.84]
[1744748380577,23.59585568,128.15,128.12,10.84]
[1744748381573,15.79213702,128.14,128.12,10.84]
[1744748382165,23.59585568,128.15,128.12,10.84]
[1744748383780,15.79213702,128.14,128.12,10.84]
[1744748385881,23.59653679,128.14,128.12,10.84]
[1744748388487,7.80439977,128.14,128.12,10.84]
[1744748391185,7.83308407,128.16,128.12,28.74807149]
[1744748396091,0.03,128.16,128.13,10.10316624]
[1744748403973,0.03,128.16,128.13,17.90769352]
[1744748404302,0.03,128.16,128.15,10.10316624]
[1744748404978,0.03,128.16,128.14,1.6202]
[1744748405189,0.03,128.16,128.12,28.74803356]
[1744748405372,10.13316624,128.16,128.12,28.74803356]
[1744748406394,0.03,128.16,128.12,28.74803356]
[1744748406880,10.10316624,128.15,128.11,1.5119]
[1744748407079,10.10316624,128.14,128.12,10.84]
[1744748407486,10.10316624,128.13,128.12,10.84]
[1744748408091,18.64964886,128.12,128.08,10.84]
[1744748408385,10.10316624,128.1,128.08,10.84]
[1744748408593,17.9098272,128.1,128.08,10.84]
[1744748409090,7.80666096,128.1,128.08,10.84]
[1744748409899,23.60283974,128.1,128.08,10.84]
[1744748411601,7.80666096,128.1,128.08,10.84]
[1744748412189,23.60283974,128.1,128.08,10.84]
[1744748412504,23.60283974,128.1,128.06,0.063]
[1744748412505,15.79617878,128.09,128.06,0.063]
[1744748412680,15.79617878,128.08,128.06,0.063]
[1744748412882,7.80666096,128.1,128.06,0.063]
[1744748413199,7.80666096,128.1,128.06,15.85917878]
[1744748415104,23.60283974,128.1,128.06,0.063]
[1744748415483,15.79617878,128.09,128.06,0.063]
[1744748415678,7.80666096,128.1,128.06,0.063]
[1744748415903,23.60283974,128.1,128.06,0.063]
[1744748417301,15.79617878,128.09,128.06,0.063]
[1744748417699,18.64964886,128.09,128.06,0.063]